Body Name,Body,Service Division,Expense Type,Date Paid,Transaction Ref,Invoice Amount,Supplier Name
East Lindsey District Council,http://statistics.data.gov.uk/id/local-authority/32UC,AD Capital - Operations,Purchase of Vehicles,20/10/2022,30015137,"17,354.00 ",Beacon Group International Products Limited
East Lindsey District Council,http://statistics.data.gov.uk/id/local-authority/32UC,AD Capital - Regulation,Professional and Contractors Fees,18/10/2022,30014298,"3,917.50 ",Lincolnshire County Council
East Lindsey District Council,http://statistics.data.gov.uk/id/local-authority/32UC,AD Capital - Regulation,Professional and Contractors Fees,20/10/2022,30015112,346.92 ,Language is Everything Ltd
East Lindsey District Council,http://statistics.data.gov.uk/id/local-authority/32UC,AD Capital - Regulation,Professional and Contractors Fees,18/10/2022,30015130,"4,890.00 ",Lincolnshire County Council
East Lindsey District Council,http://statistics.data.gov.uk/id/local-authority/32UC,AD Capital - Regulation,Professional Fees,04/10/2022,30014760,321.20 ,Rase Veterinary Equine
East Lindsey District Council,http://statistics.data.gov.uk/id/local-authority/32UC,AD Chief Finance Officer,Other Income,13/10/2022,30015046,-22.68 ,Unison
East Lindsey District Council,http://statistics.data.gov.uk/id/local-authority/32UC,AD Chief Finance Officer,Other Private Contractors,06/10/2022,30014785,"1,419.00 ",Public Sector Partnership Services Ltd
East Lindsey District Council,http://statistics.data.gov.uk/id/local-authority/32UC,AD Chief Finance Officer,Postages,13/10/2022,30015075,"9,000.00 ",Quadient UK Ltd
East Lindsey District Council,http://statistics.data.gov.uk/id/local-authority/32UC,AD Chief Finance Officer,Professional and Contractors Fees,18/10/2022,30014024,"2,000.00 ",Borough Council of King's Lynn and West Norfolk
East Lindsey District Council,http://statistics.data.gov.uk/id/local-authority/32UC,AD Chief Finance Officer,Professional and Contractors Fees,06/10/2022,30014513,"5,418.75 ",Lincolnshire County Council
East Lindsey District Council,http://statistics.data.gov.uk/id/local-authority/32UC,AD Chief Finance Officer,Professional and Contractors Fees,18/10/2022,30014762,700.00 ,J2BTC Ltd
East Lindsey District Council,http://statistics.data.gov.uk/id/local-authority/32UC,AD Chief Finance Officer,Public Sector Partnership Services,06/10/2022,30014390,"431,944.83 ",Public Sector Partnership Services Ltd
East Lindsey District Council,http://statistics.data.gov.uk/id/local-authority/32UC,AD Chief Finance Officer,Public Sector Partnership Services,20/10/2022,30015153,"431,944.83 ",Public Sector Partnership Services Ltd
East Lindsey District Council,http://statistics.data.gov.uk/id/local-authority/32UC,AD Chief Finance Officer,Subscriptions to Organisations and Other Bodies,18/10/2022,30014607,"5,535.00 ",Nottingham City Council
East Lindsey District Council,http://statistics.data.gov.uk/id/local-authority/32UC,AD Chief Finance Officer,Subscriptions to Organisations and Other Bodies,03/11/2022,30015479,"2,880.00 ",Imagine Public Services Ltd
East Lindsey District Council,http://statistics.data.gov.uk/id/local-authority/32UC,AD Chief Finance Officer,Telephones,13/10/2022,30014000,371.50 ,Vodafone Ltd Corporate
East Lindsey District Council,http://statistics.data.gov.uk/id/local-authority/32UC,AD Chief Finance Officer,Transfer Payment to BID,18/10/2022,30015226,"15,926.10 ",Lincolnshire Coastal Destination Bid
East Lindsey District Council,http://statistics.data.gov.uk/id/local-authority/32UC,AD Chief Finance Officer,Vehicle Hire,25/10/2022,30015036,272.18 ,Tjs Self Drive
East Lindsey District Council,http://statistics.data.gov.uk/id/local-authority/32UC,AD Housing & Wellbeing,Bed and Breakfast Accommodation (Homelessness Service),20/10/2022,30014258,490.00 ,Beeston Lodge Hotel
East Lindsey District Council,http://statistics.data.gov.uk/id/local-authority/32UC,AD Housing & Wellbeing,Bed and Breakfast Accommodation (Homelessness Service),08/11/2022,30015288,"3,634.00 ",Bramley House
East Lindsey District Council,http://statistics.data.gov.uk/id/local-authority/32UC,AD Housing & Wellbeing,Bed and Breakfast Accommodation (Homelessness Service),25/10/2022,30015355,"1,120.00 ",Beeston Lodge Hotel
East Lindsey District Council,http://statistics.data.gov.uk/id/local-authority/32UC,AD Housing & Wellbeing,Bed and Breakfast Accommodation (Homelessness Service),25/10/2022,30015365,"3,960.00 ",Beeston Lodge Hotel
East Lindsey District Council,http://statistics.data.gov.uk/id/local-authority/32UC,AD Housing & Wellbeing,Bed and Breakfast Accommodation (Homelessness Service),25/10/2022,30015369,540.00 ,Beeston Lodge Hotel
East Lindsey District Council,http://statistics.data.gov.uk/id/local-authority/32UC,AD Housing & Wellbeing,Computer Hardware Purchase,25/10/2022,30015158,390.67 ,Vodafone Ltd Corporate
East Lindsey District Council,http://statistics.data.gov.uk/id/local-authority/32UC,AD Housing & Wellbeing,Electricity,13/10/2022,30015163,479.14 ,EDF Energy
East Lindsey District Council,http://statistics.data.gov.uk/id/local-authority/32UC,AD Housing & Wellbeing,Electricity,18/10/2022,30015207,340.56 ,EDF Energy
East Lindsey District Council,http://statistics.data.gov.uk/id/local-authority/32UC,AD Housing & Wellbeing,Electricity,18/10/2022,30015209,245.11 ,Southern Electric
East Lindsey District Council,http://statistics.data.gov.uk/id/local-authority/32UC,AD Housing & Wellbeing,Electricity,18/10/2022,30015213,346.56 ,Southern Electric
East Lindsey District Council,http://statistics.data.gov.uk/id/local-authority/32UC,AD Housing & Wellbeing,Electricity,18/10/2022,30015237,423.50 ,British Gas PO Box 277
East Lindsey District Council,http://statistics.data.gov.uk/id/local-authority/32UC,AD Housing & Wellbeing,Electricity,18/10/2022,30015238,409.67 ,British Gas PO Box 277
East Lindsey District Council,http://statistics.data.gov.uk/id/local-authority/32UC,AD Housing & Wellbeing,Furniture and Equipment,04/10/2022,30014560,"2,285.60 ",Solon Security Limited
East Lindsey District Council,http://statistics.data.gov.uk/id/local-authority/32UC,AD Housing & Wellbeing,Furniture and Equipment,18/10/2022,30015218,"2,034.00 ",Woodlandz Retail GY LTD
East Lindsey District Council,http://statistics.data.gov.uk/id/local-authority/32UC,AD Housing & Wellbeing,Furniture and Equipment,18/10/2022,30015274,"3,909.00 ",Solon Security Limited
East Lindsey District Council,http://statistics.data.gov.uk/id/local-authority/32UC,AD Housing & Wellbeing,Furniture and Equipment,20/10/2022,30015460,289.99 ,Faulkners
East Lindsey District Council,http://statistics.data.gov.uk/id/local-authority/32UC,AD Housing & Wellbeing,Gas,13/10/2022,30015163,155.56 ,EDF Energy
East Lindsey District Council,http://statistics.data.gov.uk/id/local-authority/32UC,AD Housing & Wellbeing,Gas,18/10/2022,30015207,152.95 ,EDF Energy
East Lindsey District Council,http://statistics.data.gov.uk/id/local-authority/32UC,AD Housing & Wellbeing,Grants and Contributions - Where a Service is Received,04/10/2022,30014469,"5,000.00 ",Citizens Advice Lindsey
East Lindsey District Council,http://statistics.data.gov.uk/id/local-authority/32UC,AD Housing & Wellbeing,Grants and Contributions - Where a Service is Received,03/10/2022,30014745,"25,000.00 ",Charis Grants Ltd
East Lindsey District Council,http://statistics.data.gov.uk/id/local-authority/32UC,AD Housing & Wellbeing,Grants and Contributions - Where a Service is Received,03/10/2022,30014746,"10,000.00 ",Charis Grants Ltd
East Lindsey District Council,http://statistics.data.gov.uk/id/local-authority/32UC,AD Housing & Wellbeing,Grants and Contributions - Where a Service is Received,13/10/2022,30015125,"5,000.00 ",Citizens Advice Lindsey
East Lindsey District Council,http://statistics.data.gov.uk/id/local-authority/32UC,AD Housing & Wellbeing,Grants and Contributions - Where a Service is Received,18/10/2022,30015172,"25,000.00 ",Charis Grants Ltd
East Lindsey District Council,http://statistics.data.gov.uk/id/local-authority/32UC,AD Housing & Wellbeing,Grants and Contributions - Where a Service is Received,18/10/2022,30015174,"10,000.00 ",Charis Grants Ltd
East Lindsey District Council,http://statistics.data.gov.uk/id/local-authority/32UC,AD Housing & Wellbeing,Grants and Contributions - Where a Service is Received,18/10/2022,30015301,"7,750.00 ",Lincolnshire CVS
East Lindsey District Council,http://statistics.data.gov.uk/id/local-authority/32UC,AD Housing & Wellbeing,Grants and Contributions - Where a Service is Received,18/10/2022,30015302,"7,750.00 ",Lincolnshire CVS
East Lindsey District Council,http://statistics.data.gov.uk/id/local-authority/32UC,AD Housing & Wellbeing,Grants and Contributions to Outside Bodies - No Service Received,11/10/2022,30014988,"1,000.00 ",Mablethorpe Area Partnership
East Lindsey District Council,http://statistics.data.gov.uk/id/local-authority/32UC,AD Housing & Wellbeing,Grants and Contributions to Outside Bodies - No Service Received,13/10/2022,30014993,"2,000.00 ",Wragby Chef
East Lindsey District Council,http://statistics.data.gov.uk/id/local-authority/32UC,AD Housing & Wellbeing,Grants and Contributions to Outside Bodies - No Service Received,13/10/2022,30015062,"2,000.00 ",The LighthouseProject
East Lindsey District Council,http://statistics.data.gov.uk/id/local-authority/32UC,AD Housing & Wellbeing,Grants and Contributions to Outside Bodies - No Service Received,13/10/2022,30015161,"11,345.84 ",R A Joinery
East Lindsey District Council,http://statistics.data.gov.uk/id/local-authority/32UC,AD Housing & Wellbeing,Grants and Contributions to Outside Bodies - No Service Received,13/10/2022,30015162,"7,460.00 ",Obam Stairlifts
East Lindsey District Council,http://statistics.data.gov.uk/id/local-authority/32UC,AD Housing & Wellbeing,Grants and Contributions to Outside Bodies - No Service Received,13/10/2022,30015166,"2,000.00 ",Mablethorpe Area Partnership
East Lindsey District Council,http://statistics.data.gov.uk/id/local-authority/32UC,AD Housing & Wellbeing,Grants and Contributions to Outside Bodies - No Service Received,18/10/2022,30015205,945.00 ,Andrew Wrisdale Building Contractor
East Lindsey District Council,http://statistics.data.gov.uk/id/local-authority/32UC,AD Housing & Wellbeing,Grants and Contributions to Outside Bodies - No Service Received,20/10/2022,30015259,"2,000.00 ",EDAN Lincs
East Lindsey District Council,http://statistics.data.gov.uk/id/local-authority/32UC,AD Housing & Wellbeing,Grants and Contributions to Outside Bodies - No Service Received,18/10/2022,30015290,"14,660.66 ",Princebuild Ltd
East Lindsey District Council,http://statistics.data.gov.uk/id/local-authority/32UC,AD Housing & Wellbeing,Grants and Contributions to Outside Bodies - No Service Received,18/10/2022,30015303,"7,753.20 ",Gary Walmsley Construction
East Lindsey District Council,http://statistics.data.gov.uk/id/local-authority/32UC,AD Housing & Wellbeing,Grants and Contributions to Outside Bodies - No Service Received,18/10/2022,30015304,"13,819.90 ",Crown Building Services
East Lindsey District Council,http://statistics.data.gov.uk/id/local-authority/32UC,AD Housing & Wellbeing,Grants and Contributions to Outside Bodies - No Service Received,25/10/2022,30015328,"2,000.00 ",Trinity Centre
East Lindsey District Council,http://statistics.data.gov.uk/id/local-authority/32UC,AD Housing & Wellbeing,Grants and Contributions to Outside Bodies - No Service Received,27/10/2022,30015364,"9,595.44 ",Lincolnshire Bathrooms and Wetrooms
East Lindsey District Council,http://statistics.data.gov.uk/id/local-authority/32UC,AD Housing & Wellbeing,Grants and Contributions to Outside Bodies - No Service Received,27/10/2022,30015511,"8,222.64 ",Lincolnshire Bathrooms and Wetrooms
East Lindsey District Council,http://statistics.data.gov.uk/id/local-authority/32UC,AD Housing & Wellbeing,Grants and Contributions to Outside Bodies - No Service Received,27/10/2022,30015513,"23,858.20 ",Andrew Wrisdale Building Contractor
East Lindsey District Council,http://statistics.data.gov.uk/id/local-authority/32UC,AD Housing & Wellbeing,Joint authorities,11/10/2022,30014968,"73,130.64 ",West Lindsey District Council
East Lindsey District Council,http://statistics.data.gov.uk/id/local-authority/32UC,AD Housing & Wellbeing,Mobile Phones,25/10/2022,30015156,390.67 ,Vodafone Ltd Corporate
East Lindsey District Council,http://statistics.data.gov.uk/id/local-authority/32UC,AD Housing & Wellbeing,Other local authorities,18/10/2022,30013554,"258,762.33 ",North Kesteven District Council
East Lindsey District Council,http://statistics.data.gov.uk/id/local-authority/32UC,AD Housing & Wellbeing,Other local authorities,18/10/2022,30014232,"240,962.79 ",North Kesteven District Council
East Lindsey District Council,http://statistics.data.gov.uk/id/local-authority/32UC,AD Housing & Wellbeing,Other local authorities,20/10/2022,30015184,"67,272.22 ",City of Lincoln Council
East Lindsey District Council,http://statistics.data.gov.uk/id/local-authority/32UC,AD Housing & Wellbeing,Other Miscellaneous Expenses,13/10/2022,30014954,841.67 ,Void Property Cleaning Services Vpcs
East Lindsey District Council,http://statistics.data.gov.uk/id/local-authority/32UC,AD Housing & Wellbeing,Other Miscellaneous Expenses,01/11/2022,30015157,390.67 ,Vodafone Ltd Corporate
East Lindsey District Council,http://statistics.data.gov.uk/id/local-authority/32UC,AD Housing & Wellbeing,Other Miscellaneous Expenses,20/10/2022,30015461,220.00 ,CJs Taxis
East Lindsey District Council,http://statistics.data.gov.uk/id/local-authority/32UC,AD Housing & Wellbeing,Other Miscellaneous Expenses,20/10/2022,30015463,550.00 ,Waste Away Clearance Service
East Lindsey District Council,http://statistics.data.gov.uk/id/local-authority/32UC,AD Housing & Wellbeing,Professional and Contractors Fees,04/10/2022,30014757,500.00 ,Lincs Digital
East Lindsey District Council,http://statistics.data.gov.uk/id/local-authority/32UC,AD Housing & Wellbeing,Staff Training Expenses (Non-Payroll),11/10/2022,30014950,252.00 ,MELCANTRAINING
East Lindsey District Council,http://statistics.data.gov.uk/id/local-authority/32UC,AD Housing & Wellbeing,Staff Training Expenses (Non-Payroll),11/10/2022,30015037,420.00 ,"""personal information redacted"""
East Lindsey District Council,http://statistics.data.gov.uk/id/local-authority/32UC,AD Housing & Wellbeing,Telephones,04/10/2022,30014696,361.50 ,Vodafone Ltd Corporate
East Lindsey District Council,http://statistics.data.gov.uk/id/local-authority/32UC,AD Housing & Wellbeing,Telephones,04/10/2022,30014697,361.50 ,Vodafone Ltd Corporate
East Lindsey District Council,http://statistics.data.gov.uk/id/local-authority/32UC,AD Housing & Wellbeing,Telephones,04/10/2022,30014698,394.83 ,Vodafone Ltd Corporate
East Lindsey District Council,http://statistics.data.gov.uk/id/local-authority/32UC,AD Leisure & Culture,Buildings Maintenance - Programmed,11/10/2022,30014866,"3,202.73 ",EJ Parker Technical Services (Louth) Ltd
East Lindsey District Council,http://statistics.data.gov.uk/id/local-authority/32UC,AD Leisure & Culture,Buildings Maintenance - Programmed,01/11/2022,30015052,219.14 ,Aaron Services Ltd
East Lindsey District Council,http://statistics.data.gov.uk/id/local-authority/32UC,AD Leisure & Culture,Buildings Maintenance - Programmed,13/10/2022,30015138,"4,664.26 ",EJ Parker Technical Services (Louth) Ltd
East Lindsey District Council,http://statistics.data.gov.uk/id/local-authority/32UC,AD Leisure & Culture,Buildings Maintenance - Programmed,08/11/2022,30015335,739.00 ,Colt International Ltd
East Lindsey District Council,http://statistics.data.gov.uk/id/local-authority/32UC,AD Leisure & Culture,Buildings Maintenance - Responsive,04/10/2022,30014682,280.00 ,Airco Refrigeration Air Conditioning Ltd
East Lindsey District Council,http://statistics.data.gov.uk/id/local-authority/32UC,AD Leisure & Culture,Buildings Maintenance - Responsive,04/10/2022,30014736,560.00 ,Nugent Pump Services Ltd
East Lindsey District Council,http://statistics.data.gov.uk/id/local-authority/32UC,AD Leisure & Culture,Buildings Maintenance - Responsive,06/10/2022,30014778,235.00 ,GRS Signs Ltd
East Lindsey District Council,http://statistics.data.gov.uk/id/local-authority/32UC,AD Leisure & Culture,Buildings Maintenance - Responsive,06/10/2022,30014797,300.00 ,Safe Sound Security Systems Links Ltd
East Lindsey District Council,http://statistics.data.gov.uk/id/local-authority/32UC,AD Leisure & Culture,Buildings Maintenance - Responsive,11/10/2022,30014830,"1,840.00 ",Lincolnshire Roller Shutters
East Lindsey District Council,http://statistics.data.gov.uk/id/local-authority/32UC,AD Leisure & Culture,Buildings Maintenance - Responsive,01/11/2022,30015052,478.94 ,Aaron Services Ltd
East Lindsey District Council,http://statistics.data.gov.uk/id/local-authority/32UC,AD Leisure & Culture,Buildings Maintenance - Responsive,13/10/2022,30015060,375.00 ,Second Element Limited
East Lindsey District Council,http://statistics.data.gov.uk/id/local-authority/32UC,AD Leisure & Culture,Buildings Maintenance - Responsive,13/10/2022,30015067,286.44 ,TVF UK Limited
East Lindsey District Council,http://statistics.data.gov.uk/id/local-authority/32UC,AD Leisure & Culture,Buildings Maintenance - Responsive,13/10/2022,30015154,280.00 ,Nugent Pump Services Ltd
East Lindsey District Council,http://statistics.data.gov.uk/id/local-authority/32UC,AD Leisure & Culture,Buildings Maintenance - Responsive,13/10/2022,30015195,698.69 ,Airco Refrigeration Air Conditioning Ltd
East Lindsey District Council,http://statistics.data.gov.uk/id/local-authority/32UC,AD Leisure & Culture,Buildings Maintenance - Responsive,18/10/2022,30015286,540.40 ,Lincoln Security Ltd
East Lindsey District Council,http://statistics.data.gov.uk/id/local-authority/32UC,AD Leisure & Culture,Buildings Maintenance - Responsive,20/10/2022,30015325,"4,335.00 ",EJ Parker Technical Services (Louth) Ltd
East Lindsey District Council,http://statistics.data.gov.uk/id/local-authority/32UC,AD Leisure & Culture,Buildings Maintenance - Responsive,27/10/2022,30015546,"2,352.64 ",Nugent Pump Services Ltd
East Lindsey District Council,http://statistics.data.gov.uk/id/local-authority/32UC,AD Leisure & Culture,Buildings Maintenance - Responsive,15/11/2022,30015641,407.52 ,Airco Refrigeration Air Conditioning Ltd
East Lindsey District Council,http://statistics.data.gov.uk/id/local-authority/32UC,AD Leisure & Culture,Electricity,03/11/2022,30015291,212.95 ,Siemens
East Lindsey District Council,http://statistics.data.gov.uk/id/local-authority/32UC,AD Leisure & Culture,Other agencies,20/10/2022,30015338,"13,581.90 ",Magna Vitae
East Lindsey District Council,http://statistics.data.gov.uk/id/local-authority/32UC,AD Leisure & Culture,Works to Buildings (Main Contractor),11/10/2022,30014648,"4,477.77 ",Dura-Sport Limited
East Lindsey District Council,http://statistics.data.gov.uk/id/local-authority/32UC,AD Organisational & Corporate Services,Computer Hardware Purchase,13/10/2022,30014761,"2,122.40 ",Probrand Limited
East Lindsey District Council,http://statistics.data.gov.uk/id/local-authority/32UC,AD Organisational & Corporate Services,Purchase of Hardware,11/10/2022,30014742,"3,193.26 ",Insight Direct (UK) Ltd
East Lindsey District Council,http://statistics.data.gov.uk/id/local-authority/32UC,AD Organisational & Corporate Services,Purchase of Hardware,13/10/2022,30015121,"1,723.71 ",Matrix Network Services Ltd
East Lindsey District Council,http://statistics.data.gov.uk/id/local-authority/32UC,AD Organisational & Corporate Services,Purchase of Hardware,01/11/2022,30015126,830.35 ,Tangible Benefit
East Lindsey District Council,http://statistics.data.gov.uk/id/local-authority/32UC,AD Organisational & Corporate Services,Purchase of Hardware,20/10/2022,30015144,"24,530.70 ",Public Sector Partnership Services Ltd
East Lindsey District Council,http://statistics.data.gov.uk/id/local-authority/32UC,AD Organisational & Corporate Services,Purchase of Hardware,13/10/2022,30015182,400.00 ,Matrix Network Services Ltd
East Lindsey District Council,http://statistics.data.gov.uk/id/local-authority/32UC,AD Organisational & Corporate Services,Purchase of Hardware,18/10/2022,30015243,211.89 ,Probrand Limited
East Lindsey District Council,http://statistics.data.gov.uk/id/local-authority/32UC,Building Control,Employee Related Schemes,13/10/2022,30013982,215.75 ,Terryberry Reward
East Lindsey District Council,http://statistics.data.gov.uk/id/local-authority/32UC,Climate Change and Environment,Computer Software Licence Costs,18/10/2022,30015194,"8,332.87 ",Osborne Energy Limited
East Lindsey District Council,http://statistics.data.gov.uk/id/local-authority/32UC,Climate Change and Environment,Professional and Contractors Fees,18/10/2022,30015194,"8,332.88 ",Osborne Energy Limited
East Lindsey District Council,http://statistics.data.gov.uk/id/local-authority/32UC,Climate Change and Environment,Professional and Contractors Fees,25/10/2022,30015530,"6,523.40 ",Breyer Group PLC
East Lindsey District Council,http://statistics.data.gov.uk/id/local-authority/32UC,Climate Change and Environment,Professional Fees,25/10/2022,30014678,"115,621.93 ",Everwarm Ltd
East Lindsey District Council,http://statistics.data.gov.uk/id/local-authority/32UC,Climate Change and Environment,Professional Fees,06/10/2022,30014835,"6,263.92 ",Everwarm Ltd
East Lindsey District Council,http://statistics.data.gov.uk/id/local-authority/32UC,Climate Change and Environment,Professional Fees,06/10/2022,30014836,"8,943.92 ",Everwarm Ltd
East Lindsey District Council,http://statistics.data.gov.uk/id/local-authority/32UC,Climate Change and Environment,Professional Fees,06/10/2022,30014839,"3,415.92 ",Everwarm Ltd
East Lindsey District Council,http://statistics.data.gov.uk/id/local-authority/32UC,Climate Change and Environment,Professional Fees,06/10/2022,30014840,"8,675.84 ",Everwarm Ltd
East Lindsey District Council,http://statistics.data.gov.uk/id/local-authority/32UC,Climate Change and Environment,Professional Fees,06/10/2022,30014841,"12,279.92 ",Everwarm Ltd
East Lindsey District Council,http://statistics.data.gov.uk/id/local-authority/32UC,Climate Change and Environment,Professional Fees,06/10/2022,30014842,"8,204.92 ",Everwarm Ltd
East Lindsey District Council,http://statistics.data.gov.uk/id/local-authority/32UC,Climate Change and Environment,Professional Fees,06/10/2022,30014843,"5,413.92 ",Everwarm Ltd
East Lindsey District Council,http://statistics.data.gov.uk/id/local-authority/32UC,Climate Change and Environment,Professional Fees,06/10/2022,30014844,"13,099.92 ",Everwarm Ltd
East Lindsey District Council,http://statistics.data.gov.uk/id/local-authority/32UC,Climate Change and Environment,Professional Fees,06/10/2022,30014845,"13,390.92 ",Everwarm Ltd
East Lindsey District Council,http://statistics.data.gov.uk/id/local-authority/32UC,Climate Change and Environment,Professional Fees,06/10/2022,30014846,"12,522.42 ",Everwarm Ltd
East Lindsey District Council,http://statistics.data.gov.uk/id/local-authority/32UC,Climate Change and Environment,Professional Fees,06/10/2022,30014847,"13,250.92 ",Everwarm Ltd
East Lindsey District Council,http://statistics.data.gov.uk/id/local-authority/32UC,Climate Change and Environment,Professional Fees,11/10/2022,30014974,"7,790.92 ",Everwarm Ltd
East Lindsey District Council,http://statistics.data.gov.uk/id/local-authority/32UC,Climate Change and Environment,Professional Fees,08/11/2022,30015324,"1,111.05 ",Osborne Energy Limited
East Lindsey District Council,http://statistics.data.gov.uk/id/local-authority/32UC,DC Revenues & Benefits,Grants and Contributions - Where a Service is Received,04/10/2022,30014666,"2,500.00 ",City of Lincoln Council
East Lindsey District Council,http://statistics.data.gov.uk/id/local-authority/32UC,Development Control,Mobile Phones,06/10/2022,30014741,394.83 ,Vodafone Ltd Corporate
East Lindsey District Council,http://statistics.data.gov.uk/id/local-authority/32UC,Development Control,Mobile Phones,06/10/2022,30014764,781.34 ,Vodafone Ltd Corporate
East Lindsey District Council,http://statistics.data.gov.uk/id/local-authority/32UC,Development Control,Other Miscellaneous Expenses,11/10/2022,30014328,"1,901.90 ",G F Tomlinson Building Limited
East Lindsey District Council,http://statistics.data.gov.uk/id/local-authority/32UC,Development Control,Planning Application Fees,11/10/2022,30015051,"1,614.00 ",Portal Plan Quest Ltd
East Lindsey District Council,http://statistics.data.gov.uk/id/local-authority/32UC,Development Control,Planning Application Fees,10/11/2022,30015579,462.00 ,Jewelbasic Ltd T/A Intercounty Supplies
East Lindsey District Council,http://statistics.data.gov.uk/id/local-authority/32UC,Development Control,Professional and Contractors Fees,11/10/2022,30015013,"29,535.00 ",Heritage Trust of Lincolnshire Ltd
East Lindsey District Council,http://statistics.data.gov.uk/id/local-authority/32UC,Development Control,Professional and Contractors Fees,03/11/2022,30015198,"2,100.00 ",CP Viability Ltd
East Lindsey District Council,http://statistics.data.gov.uk/id/local-authority/32UC,Development Control,Shared Management,06/10/2022,30014190,"35,954.66 ",Boston Borough Council
East Lindsey District Council,http://statistics.data.gov.uk/id/local-authority/32UC,East Lindsey Balance Sheet,Cash and Cash Equivalents,02/09/2022,30014868,"750,000.00 ",Barclays Bank Plc
East Lindsey District Council,http://statistics.data.gov.uk/id/local-authority/32UC,East Lindsey Balance Sheet,Cash and Cash Equivalents,06/09/2022,30014869,"200,000.00 ",Barclays Bank Plc
East Lindsey District Council,http://statistics.data.gov.uk/id/local-authority/32UC,East Lindsey Balance Sheet,Cash and Cash Equivalents,07/09/2022,30014870,"1,225,000.00 ",Barclays Bank Plc
East Lindsey District Council,http://statistics.data.gov.uk/id/local-authority/32UC,East Lindsey Balance Sheet,Cash and Cash Equivalents,14/09/2022,30014871,"120,000.00 ",Barclays Bank Plc
East Lindsey District Council,http://statistics.data.gov.uk/id/local-authority/32UC,East Lindsey Balance Sheet,Cash and Cash Equivalents,28/09/2022,30014872,"100,000.00 ",Barclays Bank Plc
East Lindsey District Council,http://statistics.data.gov.uk/id/local-authority/32UC,East Lindsey Balance Sheet,Cash and Cash Equivalents,29/09/2022,30014873,"120,000.00 ",Barclays Bank Plc
East Lindsey District Council,http://statistics.data.gov.uk/id/local-authority/32UC,Enforcement,Staff Recruitment,25/10/2022,30014832,"1,662.50 ",G2 Recruitment Solutions
East Lindsey District Council,http://statistics.data.gov.uk/id/local-authority/32UC,Enforcement,Staff Recruitment,25/10/2022,30014849,"1,757.50 ",G2 Recruitment Solutions
East Lindsey District Council,http://statistics.data.gov.uk/id/local-authority/32UC,Enforcement,Staff Recruitment,01/11/2022,30015059,"1,805.00 ",G2 Recruitment Solutions
East Lindsey District Council,http://statistics.data.gov.uk/id/local-authority/32UC,Enforcement,Staff Recruitment,01/11/2022,30015061,"1,757.50 ",G2 Recruitment Solutions
East Lindsey District Council,http://statistics.data.gov.uk/id/local-authority/32UC,Enforcement,Staff Recruitment,08/11/2022,30015245,"1,805.00 ",G2 Recruitment Solutions
East Lindsey District Council,http://statistics.data.gov.uk/id/local-authority/32UC,Enforcement,Staff Recruitment,15/11/2022,30015387,"3,420.00 ",G2 Recruitment Solutions
East Lindsey District Council,http://statistics.data.gov.uk/id/local-authority/32UC,Enforcement,Staff Recruitment,15/11/2022,30015388,"1,852.50 ",G2 Recruitment Solutions
East Lindsey District Council,http://statistics.data.gov.uk/id/local-authority/32UC,Environmental Health,Advertising - Legal And Public,25/10/2022,30015123,550.00 ,Haymarket Media Group Ltd
East Lindsey District Council,http://statistics.data.gov.uk/id/local-authority/32UC,Environmental Health,Computer Hardware Purchase,06/10/2022,30014706,361.50 ,Vodafone Ltd Corporate
East Lindsey District Council,http://statistics.data.gov.uk/id/local-authority/32UC,Environmental Health,Furniture and Equipment,13/10/2022,30012172,344.46 ,Rapiscan Systems Limited
East Lindsey District Council,http://statistics.data.gov.uk/id/local-authority/32UC,Environmental Health,Professional and Contractors Fees,13/10/2022,30013896,318.75 ,G2 Recruitment Solutions
East Lindsey District Council,http://statistics.data.gov.uk/id/local-authority/32UC,Environmental Health,Professional and Contractors Fees,13/10/2022,30014806,803.70 ,G2 Recruitment Solutions
East Lindsey District Council,http://statistics.data.gov.uk/id/local-authority/32UC,Environmental Health,Professional and Contractors Fees,13/10/2022,30014807,855.00 ,G2 Recruitment Solutions
East Lindsey District Council,http://statistics.data.gov.uk/id/local-authority/32UC,Environmental Health,Professional and Contractors Fees,06/10/2022,30014809,787.55 ,G2 Recruitment Solutions
East Lindsey District Council,http://statistics.data.gov.uk/id/local-authority/32UC,Environmental Health,Professional and Contractors Fees,06/10/2022,30014810,874.95 ,G2 Recruitment Solutions
East Lindsey District Council,http://statistics.data.gov.uk/id/local-authority/32UC,Environmental Health,Professional and Contractors Fees,06/10/2022,30014811,"1,275.00 ",G2 Recruitment Solutions
East Lindsey District Council,http://statistics.data.gov.uk/id/local-authority/32UC,Environmental Health,Professional and Contractors Fees,06/10/2022,30014812,779.95 ,G2 Recruitment Solutions
East Lindsey District Council,http://statistics.data.gov.uk/id/local-authority/32UC,Environmental Health,Professional and Contractors Fees,06/10/2022,30014813,855.00 ,G2 Recruitment Solutions
East Lindsey District Council,http://statistics.data.gov.uk/id/local-authority/32UC,Environmental Health,Professional and Contractors Fees,11/10/2022,30014970,956.25 ,G2 Recruitment Solutions
East Lindsey District Council,http://statistics.data.gov.uk/id/local-authority/32UC,Environmental Health,Professional and Contractors Fees,11/10/2022,30014971,956.25 ,G2 Recruitment Solutions
East Lindsey District Council,http://statistics.data.gov.uk/id/local-authority/32UC,Environmental Health,Professional and Contractors Fees,25/10/2022,30015057,760.00 ,G2 Recruitment Solutions
East Lindsey District Council,http://statistics.data.gov.uk/id/local-authority/32UC,Environmental Health,Professional and Contractors Fees,25/10/2022,30015064,783.75 ,G2 Recruitment Solutions
East Lindsey District Council,http://statistics.data.gov.uk/id/local-authority/32UC,Environmental Health,Professional and Contractors Fees,25/10/2022,30015068,956.25 ,G2 Recruitment Solutions
East Lindsey District Council,http://statistics.data.gov.uk/id/local-authority/32UC,Environmental Health,Professional and Contractors Fees,01/11/2022,30015071,"1,275.00 ",G2 Recruitment Solutions
East Lindsey District Council,http://statistics.data.gov.uk/id/local-authority/32UC,Environmental Health,Professional and Contractors Fees,01/11/2022,30015073,846.93 ,G2 Recruitment Solutions
East Lindsey District Council,http://statistics.data.gov.uk/id/local-authority/32UC,Environmental Health,Professional and Contractors Fees,01/11/2022,30015074,866.88 ,G2 Recruitment Solutions
East Lindsey District Council,http://statistics.data.gov.uk/id/local-authority/32UC,Environmental Health,Professional and Contractors Fees,08/11/2022,30015255,894.43 ,G2 Recruitment Solutions
East Lindsey District Council,http://statistics.data.gov.uk/id/local-authority/32UC,Environmental Health,Professional and Contractors Fees,08/11/2022,30015256,"1,275.00 ",G2 Recruitment Solutions
East Lindsey District Council,http://statistics.data.gov.uk/id/local-authority/32UC,Environmental Health,Professional and Contractors Fees,08/11/2022,30015257,838.85 ,G2 Recruitment Solutions
East Lindsey District Council,http://statistics.data.gov.uk/id/local-authority/32UC,Environmental Health,Professional and Contractors Fees,08/11/2022,30015258,360.00 ,G2 Recruitment Solutions
East Lindsey District Council,http://statistics.data.gov.uk/id/local-authority/32UC,Environmental Health,Professional and Contractors Fees,25/10/2022,30015295,"1,200.00 ",Osborne Richardson Ltd
East Lindsey District Council,http://statistics.data.gov.uk/id/local-authority/32UC,Environmental Health,Professional and Contractors Fees,20/10/2022,30015473,960.00 ,Osborne Richardson Ltd
East Lindsey District Council,http://statistics.data.gov.uk/id/local-authority/32UC,Environmental Health,Professional and Contractors Fees,20/10/2022,30015475,480.00 ,Osborne Richardson Ltd
East Lindsey District Council,http://statistics.data.gov.uk/id/local-authority/32UC,Environmental Health,Professional and Contractors Fees,15/11/2022,30015536,855.00 ,G2 Recruitment Solutions
East Lindsey District Council,http://statistics.data.gov.uk/id/local-authority/32UC,Environmental Health,Professional and Contractors Fees,15/11/2022,30015537,843.60 ,G2 Recruitment Solutions
East Lindsey District Council,http://statistics.data.gov.uk/id/local-authority/32UC,Environmental Health,Professional and Contractors Fees,15/11/2022,30015538,"1,275.00 ",G2 Recruitment Solutions
East Lindsey District Council,http://statistics.data.gov.uk/id/local-authority/32UC,Environmental Health,Professional and Contractors Fees,25/10/2022,30015559,"1,275.00 ",G2 Recruitment Solutions
East Lindsey District Council,http://statistics.data.gov.uk/id/local-authority/32UC,Environmental Health,Professional and Contractors Fees,25/10/2022,30015560,"1,575.00 ",G2 Recruitment Solutions
East Lindsey District Council,http://statistics.data.gov.uk/id/local-authority/32UC,Environmental Health,Professional and Contractors Fees,25/10/2022,30015561,956.25 ,G2 Recruitment Solutions
East Lindsey District Council,http://statistics.data.gov.uk/id/local-authority/32UC,Environmental Health,Professional and Contractors Fees,25/10/2022,30015562,"1,575.00 ",G2 Recruitment Solutions
East Lindsey District Council,http://statistics.data.gov.uk/id/local-authority/32UC,Environmental Health,Professional and Contractors Fees,25/10/2022,30015563,680.00 ,G2 Recruitment Solutions
East Lindsey District Council,http://statistics.data.gov.uk/id/local-authority/32UC,Environmental Health,Professional and Contractors Fees,25/10/2022,30015564,956.25 ,G2 Recruitment Solutions
East Lindsey District Council,http://statistics.data.gov.uk/id/local-authority/32UC,Environmental Health,Professional and Contractors Fees,01/11/2022,30015639,227.02 ,CHM
East Lindsey District Council,http://statistics.data.gov.uk/id/local-authority/32UC,Environmental Health,Telephones,13/10/2022,30015155,361.50 ,Vodafone Ltd Corporate
East Lindsey District Council,http://statistics.data.gov.uk/id/local-authority/32UC,Growth Relationships & Growth Promotions,Agency Staff,04/10/2022,30014744,"4,771.61 ",Michael Page Int Recruitment Ltd
East Lindsey District Council,http://statistics.data.gov.uk/id/local-authority/32UC,Growth Relationships & Growth Promotions,Agency Staff,27/10/2022,30015592,"3,651.10 ",Michael Page Int Recruitment Ltd
East Lindsey District Council,http://statistics.data.gov.uk/id/local-authority/32UC,Growth Relationships & Growth Promotions,Computer Hardware Purchase,04/10/2022,30014700,361.50 ,Vodafone Ltd Corporate
East Lindsey District Council,http://statistics.data.gov.uk/id/local-authority/32UC,Growth Relationships & Growth Promotions,External Printing and Design Costs,11/10/2022,30014789,"2,000.00 ","""personal information redacted"""
East Lindsey District Council,http://statistics.data.gov.uk/id/local-authority/32UC,Growth Relationships & Growth Promotions,Other Communication Costs,06/10/2022,30014803,312.63 ,Distract Ltd
East Lindsey District Council,http://statistics.data.gov.uk/id/local-authority/32UC,Growth Relationships & Growth Promotions,Other Communication Costs,11/10/2022,30015010,"1,000.00 ",Distract Ltd
East Lindsey District Council,http://statistics.data.gov.uk/id/local-authority/32UC,Growth Relationships & Growth Promotions,Other Communication Costs,13/10/2022,30015101,"1,225.65 ","""personal information redacted"""
East Lindsey District Council,http://statistics.data.gov.uk/id/local-authority/32UC,Growth Relationships & Growth Promotions,Other Communication Costs,27/10/2022,30015604,950.00 ,County Life Ltd
East Lindsey District Council,http://statistics.data.gov.uk/id/local-authority/32UC,Growth Relationships & Growth Promotions,Professional and Contractors Fees,18/10/2022,30015254,"2,650.00 ",Rose Regeneration Ltd
East Lindsey District Council,http://statistics.data.gov.uk/id/local-authority/32UC,Growth Relationships & Growth Promotions,Professional and Contractors Fees,27/10/2022,30015313,"1,000.00 ",J M Consulting
East Lindsey District Council,http://statistics.data.gov.uk/id/local-authority/32UC,Growth Relationships & Growth Promotions,Professional and Contractors Fees,01/11/2022,30015582,"3,000.00 ",Nervous Squirrel Ltd.
East Lindsey District Council,http://statistics.data.gov.uk/id/local-authority/32UC,Growth Relationships & Growth Promotions,Professional Fees,13/10/2022,30015109,"32,804.67 ",Lk2 Architects Ltd
East Lindsey District Council,http://statistics.data.gov.uk/id/local-authority/32UC,Growth Relationships & Growth Promotions,Professional Fees,01/11/2022,30015120,"45,627.70 ",Alliance Leisure Services Limited
East Lindsey District Council,http://statistics.data.gov.uk/id/local-authority/32UC,Growth Relationships & Growth Promotions,Professional Fees,27/10/2022,30015535,"26,275.45 ",Lk2 Architects Ltd
East Lindsey District Council,http://statistics.data.gov.uk/id/local-authority/32UC,Information Technology,Computer Hardware Maintenance,18/10/2022,30014740,280.50 ,Phoenix Software Ltd
East Lindsey District Council,http://statistics.data.gov.uk/id/local-authority/32UC,Information Technology,Computer Hardware Maintenance,11/10/2022,30014855,349.46 ,Direct Telecommunications Systems
East Lindsey District Council,http://statistics.data.gov.uk/id/local-authority/32UC,Information Technology,Computer Hardware Maintenance,11/10/2022,30014959,349.46 ,Direct Telecommunications Systems
East Lindsey District Council,http://statistics.data.gov.uk/id/local-authority/32UC,Information Technology,Computer Hardware Maintenance,11/10/2022,30014960,349.46 ,Direct Telecommunications Systems
East Lindsey District Council,http://statistics.data.gov.uk/id/local-authority/32UC,Information Technology,Computer Hardware Maintenance,11/10/2022,30014962,349.46 ,Direct Telecommunications Systems
East Lindsey District Council,http://statistics.data.gov.uk/id/local-authority/32UC,Information Technology,Computer Hardware Maintenance,25/10/2022,30014992,"2,229.85 ",One Source It Limited
East Lindsey District Council,http://statistics.data.gov.uk/id/local-authority/32UC,Information Technology,Computer Hardware Maintenance,24/11/2022,30015550,366.93 ,Insight Direct (UK) Ltd
East Lindsey District Council,http://statistics.data.gov.uk/id/local-authority/32UC,Information Technology,Computer Software Licence Costs,20/10/2022,30015142,"8,001.08 ",Experian
East Lindsey District Council,http://statistics.data.gov.uk/id/local-authority/32UC,Information Technology,Computer Software Licence Costs,03/11/2022,30015216,552.80 ,Phoenix Software Ltd
East Lindsey District Council,http://statistics.data.gov.uk/id/local-authority/32UC,Information Technology,Computer Software Licence Costs,03/11/2022,30015217,"38,115.18 ",Softcat Plc
East Lindsey District Council,http://statistics.data.gov.uk/id/local-authority/32UC,Information Technology,Computer Software Licence Costs,01/11/2022,30015516,"4,995.00 ",PAY360 Ltf
East Lindsey District Council,http://statistics.data.gov.uk/id/local-authority/32UC,Information Technology,Computer Software Licence Costs,15/11/2022,30015541,359.25 ,Phoenix Software Ltd
East Lindsey District Council,http://statistics.data.gov.uk/id/local-authority/32UC,Information Technology,Computer Software Licence Costs,15/11/2022,30015632,"9,947.81 ",Civica UK Ltd
East Lindsey District Council,http://statistics.data.gov.uk/id/local-authority/32UC,Information Technology,External Printing and Design Costs,20/10/2022,30015283,"23,729.43 ",Public Sector Partnership Services Ltd
East Lindsey District Council,http://statistics.data.gov.uk/id/local-authority/32UC,Information Technology,Internet Broadband Payments,20/10/2022,30014532,81.99 ,Multidata
East Lindsey District Council,http://statistics.data.gov.uk/id/local-authority/32UC,Information Technology,Materials and Consumables,25/10/2022,30014944,520.14 ,Banner Group Ltd Ta Spectrum
East Lindsey District Council,http://statistics.data.gov.uk/id/local-authority/32UC,Information Technology,Materials and Consumables,25/10/2022,30014972,249.75 ,Banner Group Ltd Ta Spectrum
East Lindsey District Council,http://statistics.data.gov.uk/id/local-authority/32UC,Information Technology,Materials and Consumables,08/11/2022,30015241,365.92 ,Tangible Benefit
East Lindsey District Council,http://statistics.data.gov.uk/id/local-authority/32UC,Information Technology,Materials and Consumables,01/11/2022,30015568,"1,128.00 ",Public Sector Partnership Services Ltd
East Lindsey District Council,http://statistics.data.gov.uk/id/local-authority/32UC,Information Technology,Telephones,20/10/2022,30014532,131.16 ,Multidata
East Lindsey District Council,http://statistics.data.gov.uk/id/local-authority/32UC,Information Technology,Telephones,06/10/2022,30014673,"2,780.19 ",Vodafone Ltd Corporate
East Lindsey District Council,http://statistics.data.gov.uk/id/local-authority/32UC,Information Technology,Telephones,06/10/2022,30014675,468.25 ,Vodafone Ltd Corporate
East Lindsey District Council,http://statistics.data.gov.uk/id/local-authority/32UC,Invest East Lindsey,Professional Fees,20/10/2022,30015007,259.95 ,Emprocom Ltd
East Lindsey District Council,http://statistics.data.gov.uk/id/local-authority/32UC,Invest East Lindsey,Professional Fees,11/10/2022,30015082,"4,858.50 ",John Peberdy Partnership
East Lindsey District Council,http://statistics.data.gov.uk/id/local-authority/32UC,Invest East Lindsey,Professional Fees,08/11/2022,30015249,482.20 ,Emprocom Ltd
East Lindsey District Council,http://statistics.data.gov.uk/id/local-authority/32UC,Invest East Lindsey,Works to Buildings (Main Contractor),22/09/2022,30014875,"345,745.91 ",Willmott Dixon Construction Ltd
East Lindsey District Council,http://statistics.data.gov.uk/id/local-authority/32UC,Invest East Lindsey,Works to Buildings (Main Contractor),22/09/2022,30014876,"32,185.92 ",Willmott Dixon Construction Ltd
East Lindsey District Council,http://statistics.data.gov.uk/id/local-authority/32UC,Invest East Lindsey,Works to Buildings (Main Contractor),11/10/2022,30015004,"203,944.58 ",Willmott Dixon Construction Ltd
East Lindsey District Council,http://statistics.data.gov.uk/id/local-authority/32UC,Neighbourhoods,Agency Staff,06/10/2022,30014814,"4,362.01 ",The Workshop (Wisbech) Ltd
East Lindsey District Council,http://statistics.data.gov.uk/id/local-authority/32UC,Neighbourhoods,Agency Staff,11/10/2022,30015056,"4,171.47 ",The Workshop (Wisbech) Ltd
East Lindsey District Council,http://statistics.data.gov.uk/id/local-authority/32UC,Neighbourhoods,Agency Staff,18/10/2022,30015287,"4,668.23 ",The Workshop (Wisbech) Ltd
East Lindsey District Council,http://statistics.data.gov.uk/id/local-authority/32UC,Neighbourhoods,Agency Staff,25/10/2022,30015545,"5,008.48 ",The Workshop (Wisbech) Ltd
East Lindsey District Council,http://statistics.data.gov.uk/id/local-authority/32UC,Neighbourhoods,Buildings Maintenance - Programmed,13/10/2022,30014708,707.25 ,Stowlin Ltd
East Lindsey District Council,http://statistics.data.gov.uk/id/local-authority/32UC,Neighbourhoods,Buildings Maintenance - Programmed,13/10/2022,30014709,452.10 ,Stowlin Ltd
East Lindsey District Council,http://statistics.data.gov.uk/id/local-authority/32UC,Neighbourhoods,Buildings Maintenance - Programmed,18/10/2022,30014774,631.15 ,Stowlin Ltd
East Lindsey District Council,http://statistics.data.gov.uk/id/local-authority/32UC,Neighbourhoods,Buildings Maintenance - Programmed,18/10/2022,30014775,361.90 ,Stowlin Ltd
East Lindsey District Council,http://statistics.data.gov.uk/id/local-authority/32UC,Neighbourhoods,Buildings Maintenance - Programmed,13/10/2022,30014777,318.75 ,Stowlin Ltd
East Lindsey District Council,http://statistics.data.gov.uk/id/local-authority/32UC,Neighbourhoods,Buildings Maintenance - Programmed,25/10/2022,30015065,243.75 ,Stowlin Ltd
East Lindsey District Council,http://statistics.data.gov.uk/id/local-authority/32UC,Neighbourhoods,Buildings Maintenance - Programmed,20/10/2022,30015188,"6,666.67 ",Gelder Ltd
East Lindsey District Council,http://statistics.data.gov.uk/id/local-authority/32UC,Neighbourhoods,Buildings Maintenance - Programmed,20/10/2022,30015189,"6,666.66 ",Gelder Ltd
East Lindsey District Council,http://statistics.data.gov.uk/id/local-authority/32UC,Neighbourhoods,Buildings Maintenance - Programmed,20/10/2022,30015192,"6,666.67 ",Gelder Ltd
East Lindsey District Council,http://statistics.data.gov.uk/id/local-authority/32UC,Neighbourhoods,Buildings Maintenance - Responsive,13/10/2022,30015143,"1,275.00 ",A C Property Maintenance Ltd
East Lindsey District Council,http://statistics.data.gov.uk/id/local-authority/32UC,Neighbourhoods,Clothing Uniforms And Laundry,11/10/2022,30013933,293.04 ,SMI Int Group
East Lindsey District Council,http://statistics.data.gov.uk/id/local-authority/32UC,Neighbourhoods,Clothing Uniforms And Laundry,25/10/2022,30014947,230.00 ,SMI Int Group
East Lindsey District Council,http://statistics.data.gov.uk/id/local-authority/32UC,Neighbourhoods,Clothing Uniforms And Laundry,01/11/2022,30015124,743.60 ,SMI Int Group
East Lindsey District Council,http://statistics.data.gov.uk/id/local-authority/32UC,Neighbourhoods,Clothing Uniforms And Laundry,01/11/2022,30015135,652.30 ,SMI Int Group
East Lindsey District Council,http://statistics.data.gov.uk/id/local-authority/32UC,Neighbourhoods,Clothing Uniforms And Laundry,08/11/2022,30015293,423.13 ,SMI Int Group
East Lindsey District Council,http://statistics.data.gov.uk/id/local-authority/32UC,Neighbourhoods,Computer Hardware Purchase,08/11/2022,30015633,678.00 ,Vodafone Ltd Corporate
East Lindsey District Council,http://statistics.data.gov.uk/id/local-authority/32UC,Neighbourhoods,Course Fees,18/10/2022,30015296,495.00 ,Valid
East Lindsey District Council,http://statistics.data.gov.uk/id/local-authority/32UC,Neighbourhoods,Employee Related Schemes,03/11/2022,30015280,296.25 ,Terryberry Reward
East Lindsey District Council,http://statistics.data.gov.uk/id/local-authority/32UC,Neighbourhoods,Grounds Maintenance Contract (External),25/10/2022,30015200,"12,105.09 ",Glendale Grounds Management Limited
East Lindsey District Council,http://statistics.data.gov.uk/id/local-authority/32UC,Neighbourhoods,Materials and Consumables,04/10/2022,30014626,214.25 ,Terryberry Reward
East Lindsey District Council,http://statistics.data.gov.uk/id/local-authority/32UC,Neighbourhoods,Materials and Consumables,20/10/2022,30014786,291.38 ,Landscape Supply Company
East Lindsey District Council,http://statistics.data.gov.uk/id/local-authority/32UC,Neighbourhoods,Materials and Consumables,18/10/2022,30014969,"1,501.20 ",Rigby Taylor
East Lindsey District Council,http://statistics.data.gov.uk/id/local-authority/32UC,Neighbourhoods,Materials and Consumables,18/10/2022,30014990,488.28 ,Rigby Taylor
East Lindsey District Council,http://statistics.data.gov.uk/id/local-authority/32UC,Neighbourhoods,Materials and Consumables,18/10/2022,30015019,319.76 ,Eastern Shires Purchasing Organisation
East Lindsey District Council,http://statistics.data.gov.uk/id/local-authority/32UC,Neighbourhoods,Materials and Consumables,13/10/2022,30015122,"1,201.00 ",Lubbe and Sons (Bulbs) Ltd
East Lindsey District Council,http://statistics.data.gov.uk/id/local-authority/32UC,Neighbourhoods,Materials and Consumables,25/10/2022,30015202,70.88 ,Eastern Shires Purchasing Organisation
East Lindsey District Council,http://statistics.data.gov.uk/id/local-authority/32UC,Neighbourhoods,Materials and Consumables,01/11/2022,30015584,275.10 ,Eastern Shires Purchasing Organisation
East Lindsey District Council,http://statistics.data.gov.uk/id/local-authority/32UC,Neighbourhoods,Other Private Contractors,06/10/2022,30014815,"38,599.92 ",Danfo UK Ltd
East Lindsey District Council,http://statistics.data.gov.uk/id/local-authority/32UC,Neighbourhoods,Other Private Contractors,25/10/2022,30015540,"38,599.92 ",Danfo UK Ltd
East Lindsey District Council,http://statistics.data.gov.uk/id/local-authority/32UC,Neighbourhoods,Professional and Contractors Fees,11/10/2022,30014961,"3,194.84 ",Sid Dennis and Sons Ltd
East Lindsey District Council,http://statistics.data.gov.uk/id/local-authority/32UC,Neighbourhoods,Professional and Contractors Fees,11/10/2022,30014963,901.36 ,Sid Dennis and Sons Ltd
East Lindsey District Council,http://statistics.data.gov.uk/id/local-authority/32UC,Neighbourhoods,Professional and Contractors Fees,11/10/2022,30014965,"1,060.88 ",Sid Dennis and Sons Ltd
East Lindsey District Council,http://statistics.data.gov.uk/id/local-authority/32UC,Neighbourhoods,Professional and Contractors Fees,11/10/2022,30014966,743.92 ,Sid Dennis and Sons Ltd
East Lindsey District Council,http://statistics.data.gov.uk/id/local-authority/32UC,Neighbourhoods,Professional and Contractors Fees,11/10/2022,30014995,572.40 ,Sid Dennis and Sons Ltd
East Lindsey District Council,http://statistics.data.gov.uk/id/local-authority/32UC,Neighbourhoods,Professional and Contractors Fees,18/10/2022,30015197,686.88 ,Sid Dennis and Sons Ltd
East Lindsey District Council,http://statistics.data.gov.uk/id/local-authority/32UC,Neighbourhoods,Professional and Contractors Fees,18/10/2022,30015285,686.88 ,Sid Dennis and Sons Ltd
East Lindsey District Council,http://statistics.data.gov.uk/id/local-authority/32UC,Neighbourhoods,Professional and Contractors Fees,18/10/2022,30015321,"1,030.32 ",Sid Dennis and Sons Ltd
East Lindsey District Council,http://statistics.data.gov.uk/id/local-authority/32UC,Neighbourhoods,Professional and Contractors Fees,27/10/2022,30015547,"1,390.00 ",EKM Ltd
East Lindsey District Council,http://statistics.data.gov.uk/id/local-authority/32UC,Neighbourhoods,Professional and Contractors Fees,01/11/2022,30015588,"1,030.32 ",Sid Dennis and Sons Ltd
East Lindsey District Council,http://statistics.data.gov.uk/id/local-authority/32UC,Neighbourhoods,Water and Sewerage Charges,20/10/2022,30014862,"1,290.97 ",Wave Anglian Water Business National Ltd
East Lindsey District Council,http://statistics.data.gov.uk/id/local-authority/32UC,Neighbourhoods,Water and Sewerage Charges,27/10/2022,30015506,"4,418.38 ",Wave Anglian Water Business National Ltd
East Lindsey District Council,http://statistics.data.gov.uk/id/local-authority/32UC,"Performance, Governance & Commissioning",Agency Staff,06/10/2022,30014282,636.00 ,Hays Specialist Recruitment Limited
East Lindsey District Council,http://statistics.data.gov.uk/id/local-authority/32UC,"Performance, Governance & Commissioning",Agency Staff,06/10/2022,30014283,567.10 ,Hays Specialist Recruitment Limited
East Lindsey District Council,http://statistics.data.gov.uk/id/local-authority/32UC,"Performance, Governance & Commissioning",Agency Staff,06/10/2022,30014284,636.00 ,Hays Specialist Recruitment Limited
East Lindsey District Council,http://statistics.data.gov.uk/id/local-authority/32UC,"Performance, Governance & Commissioning",Agency Staff,06/10/2022,30014656,699.60 ,Hays Specialist Recruitment Limited
East Lindsey District Council,http://statistics.data.gov.uk/id/local-authority/32UC,"Performance, Governance & Commissioning",Agency Staff,25/10/2022,30014827,477.00 ,Hays Specialist Recruitment Limited
East Lindsey District Council,http://statistics.data.gov.uk/id/local-authority/32UC,"Performance, Governance & Commissioning",Agency Staff,18/10/2022,30015206,636.00 ,Hays Specialist Recruitment Limited
East Lindsey District Council,http://statistics.data.gov.uk/id/local-authority/32UC,"Performance, Governance & Commissioning",Agency Staff,25/10/2022,30015569,636.00 ,Hays Specialist Recruitment Limited
East Lindsey District Council,http://statistics.data.gov.uk/id/local-authority/32UC,"Performance, Governance & Commissioning",External Printing and Design Costs,04/10/2022,30014758,463.44 ,Civica Election Services
East Lindsey District Council,http://statistics.data.gov.uk/id/local-authority/32UC,"Performance, Governance & Commissioning",External Printing and Design Costs,08/11/2022,30015314,"2,812.36 ",Civica Election Services
East Lindsey District Council,http://statistics.data.gov.uk/id/local-authority/32UC,"Performance, Governance & Commissioning",Grants and Contributions to Outside Bodies - No Service Received,13/10/2022,30015159,510.00 ,Revesby Church
East Lindsey District Council,http://statistics.data.gov.uk/id/local-authority/32UC,"Performance, Governance & Commissioning",Grants and Contributions to Outside Bodies - No Service Received,18/10/2022,30015231,300.00 ,Mablethorpe Boatshed
East Lindsey District Council,http://statistics.data.gov.uk/id/local-authority/32UC,"Performance, Governance & Commissioning",Other Miscellaneous Expenses,01/11/2022,30014269,280.27 ,Probrand Limited
East Lindsey District Council,http://statistics.data.gov.uk/id/local-authority/32UC,"Performance, Governance & Commissioning",Postages,04/10/2022,30014758,402.00 ,Civica Election Services
East Lindsey District Council,http://statistics.data.gov.uk/id/local-authority/32UC,"Performance, Governance & Commissioning",Postages,08/11/2022,30015314,"14,526.98 ",Civica Election Services
East Lindsey District Council,http://statistics.data.gov.uk/id/local-authority/32UC,"Performance, Governance & Commissioning",Postages,10/11/2022,30015670,221.76 ,Royal Mail Group Ltd
East Lindsey District Council,http://statistics.data.gov.uk/id/local-authority/32UC,"Performance, Governance & Commissioning",Professional and Contractors Fees,20/10/2022,30015214,"14,500.00 ",Data Tracking Ltd
East Lindsey District Council,http://statistics.data.gov.uk/id/local-authority/32UC,"Performance, Governance & Commissioning",Professional and Contractors Fees,08/11/2022,30015625,"3,773.38 ",Data Tracking Ltd
East Lindsey District Council,http://statistics.data.gov.uk/id/local-authority/32UC,Planning Policy,Grants and Contributions to Outside Bodies - No Service Received,06/10/2022,30014242,"6,057.73 ",Hogsthorpe Parish Council
East Lindsey District Council,http://statistics.data.gov.uk/id/local-authority/32UC,Planning Policy,Professional and Contractors Fees,04/10/2022,30014747,"2,245.00 ",Create Consulting Engineers Ltd
East Lindsey District Council,http://statistics.data.gov.uk/id/local-authority/32UC,Planning Policy,Professional and Contractors Fees,27/10/2022,30015600,616.25 ,Create Consulting Engineers Ltd
East Lindsey District Council,http://statistics.data.gov.uk/id/local-authority/32UC,Planning Policy,Shared Management,06/10/2022,30014190,"24,842.59 ",Boston Borough Council
East Lindsey District Council,http://statistics.data.gov.uk/id/local-authority/32UC,Property,Agency Staff,04/10/2022,30014753,265.40 ,The Workshop (Wisbech) Ltd
East Lindsey District Council,http://statistics.data.gov.uk/id/local-authority/32UC,Property,Agency Staff,11/10/2022,30014967,408.30 ,The Workshop (Wisbech) Ltd
East Lindsey District Council,http://statistics.data.gov.uk/id/local-authority/32UC,Property,Agency Staff,11/10/2022,30015066,387.89 ,The Workshop (Wisbech) Ltd
East Lindsey District Council,http://statistics.data.gov.uk/id/local-authority/32UC,Property,Agency Staff,18/10/2022,30015262,265.40 ,The Workshop (Wisbech) Ltd
East Lindsey District Council,http://statistics.data.gov.uk/id/local-authority/32UC,Property,Agency Staff,20/10/2022,30015465,333.45 ,The Workshop (Wisbech) Ltd
East Lindsey District Council,http://statistics.data.gov.uk/id/local-authority/32UC,Property,Buildings Maintenance - Programmed,06/10/2022,30014804,780.00 ,Safe Sound Security Systems Links Ltd
East Lindsey District Council,http://statistics.data.gov.uk/id/local-authority/32UC,Property,Buildings Maintenance - Programmed,11/10/2022,30014853,350.00 ,Safe Sound Security Systems Links Ltd
East Lindsey District Council,http://statistics.data.gov.uk/id/local-authority/32UC,Property,Buildings Maintenance - Programmed,11/10/2022,30014854,420.00 ,Safe Sound Security Systems Links Ltd
East Lindsey District Council,http://statistics.data.gov.uk/id/local-authority/32UC,Property,Buildings Maintenance - Programmed,13/10/2022,30014857,338.00 ,Airco Refrigeration Air Conditioning Ltd
East Lindsey District Council,http://statistics.data.gov.uk/id/local-authority/32UC,Property,Buildings Maintenance - Programmed,11/10/2022,30014914,"7,430.87 ",Second Element Limited
East Lindsey District Council,http://statistics.data.gov.uk/id/local-authority/32UC,Property,Buildings Maintenance - Programmed,01/11/2022,30015052,"1,240.85 ",Aaron Services Ltd
East Lindsey District Council,http://statistics.data.gov.uk/id/local-authority/32UC,Property,Buildings Maintenance - Programmed,13/10/2022,30015149,666.00 ,Geze UK Ltd
East Lindsey District Council,http://statistics.data.gov.uk/id/local-authority/32UC,Property,Buildings Maintenance - Programmed,13/10/2022,30015171,414.59 ,TVF UK Limited
East Lindsey District Council,http://statistics.data.gov.uk/id/local-authority/32UC,Property,Buildings Maintenance - Programmed,25/10/2022,30015191,484.30 ,Airco Refrigeration Air Conditioning Ltd
East Lindsey District Council,http://statistics.data.gov.uk/id/local-authority/32UC,Property,Buildings Maintenance - Programmed,18/10/2022,30015236,"1,294.69 ",2Bm Limited
East Lindsey District Council,http://statistics.data.gov.uk/id/local-authority/32UC,Property,Buildings Maintenance - Programmed,08/11/2022,30015297,"2,940.00 ",Teen Spirit Ltd
East Lindsey District Council,http://statistics.data.gov.uk/id/local-authority/32UC,Property,Buildings Maintenance - Responsive,13/10/2022,30014772,260.00 ,Pest Detective Pest Control
East Lindsey District Council,http://statistics.data.gov.uk/id/local-authority/32UC,Property,Buildings Maintenance - Responsive,25/10/2022,30014852,550.00 ,BEA Fire Safety Limited
East Lindsey District Council,http://statistics.data.gov.uk/id/local-authority/32UC,Property,Buildings Maintenance - Responsive,01/11/2022,30015052,266.11 ,Aaron Services Ltd
East Lindsey District Council,http://statistics.data.gov.uk/id/local-authority/32UC,Property,Buildings Maintenance - Responsive,13/10/2022,30015139,575.00 ,TVF UK Limited
East Lindsey District Council,http://statistics.data.gov.uk/id/local-authority/32UC,Property,Buildings Maintenance - Responsive,18/10/2022,30015190,512.27 ,J.H.A Winter and Sons Ltd
East Lindsey District Council,http://statistics.data.gov.uk/id/local-authority/32UC,Property,Buildings Maintenance - Responsive,03/11/2022,30015232,390.00 ,Pest Detective Pest Control
East Lindsey District Council,http://statistics.data.gov.uk/id/local-authority/32UC,Property,Buildings Maintenance - Responsive,18/10/2022,30015260,"38,400.61 ",Gelder Ltd
East Lindsey District Council,http://statistics.data.gov.uk/id/local-authority/32UC,Property,Buildings Maintenance - Responsive,10/11/2022,30015326,213.35 ,J Mccann and Co Ltd
East Lindsey District Council,http://statistics.data.gov.uk/id/local-authority/32UC,Property,Buildings Maintenance - Responsive,10/11/2022,30015327,"1,162.18 ",J Mccann and Co Ltd
East Lindsey District Council,http://statistics.data.gov.uk/id/local-authority/32UC,Property,Buildings Maintenance - Responsive,10/11/2022,30015523,322.00 ,Town End (Leeds) Plc
East Lindsey District Council,http://statistics.data.gov.uk/id/local-authority/32UC,Property,Cleaning Contract,13/10/2022,30015118,610.00 ,Easy Clean Marshchapel Ltd
East Lindsey District Council,http://statistics.data.gov.uk/id/local-authority/32UC,Property,Cleaning Contract,13/10/2022,30015119,"1,334.00 ",Easy Clean Marshchapel Ltd
East Lindsey District Council,http://statistics.data.gov.uk/id/local-authority/32UC,Property,Court Costs,25/10/2022,30015377,"4,525.00 ",Squire Patton Boggs UK LLP
East Lindsey District Council,http://statistics.data.gov.uk/id/local-authority/32UC,Property,Electricity,06/10/2022,30014833,"22,075.16 ",Total Gas and Power Limited
East Lindsey District Council,http://statistics.data.gov.uk/id/local-authority/32UC,Property,Electricity,06/10/2022,30014838,"20,948.49 ",Total Gas and Power Limited
East Lindsey District Council,http://statistics.data.gov.uk/id/local-authority/32UC,Property,Electricity,11/10/2022,30015048,270.00 ,EDF Energy
East Lindsey District Council,http://statistics.data.gov.uk/id/local-authority/32UC,Property,Electricity,03/11/2022,30015291,757.02 ,Siemens
East Lindsey District Council,http://statistics.data.gov.uk/id/local-authority/32UC,Property,Electricity,18/10/2022,30015306,422.32 ,Opus Energy Ltd
East Lindsey District Council,http://statistics.data.gov.uk/id/local-authority/32UC,Property,Furniture and Equipment,25/10/2022,30014999,"1,021.79 ",Lincolnshire Office Friends
East Lindsey District Council,http://statistics.data.gov.uk/id/local-authority/32UC,Property,Internet Broadband Payments,20/10/2022,30014532,"1,440.38 ",Multidata
East Lindsey District Council,http://statistics.data.gov.uk/id/local-authority/32UC,Property,Maintenance,18/10/2022,30015250,490.00 ,B A Bush and Son Ltd
East Lindsey District Council,http://statistics.data.gov.uk/id/local-authority/32UC,Property,Other Communication Costs,11/10/2022,30015083,300.00 ,Digicube Ltd
East Lindsey District Council,http://statistics.data.gov.uk/id/local-authority/32UC,Property,Other Communication Costs,13/10/2022,30015117,300.00 ,Digicube Ltd
East Lindsey District Council,http://statistics.data.gov.uk/id/local-authority/32UC,Property,Other Communication Costs,03/11/2022,30015337,335.92 ,New Start Networks Ltd
East Lindsey District Council,http://statistics.data.gov.uk/id/local-authority/32UC,Property,Other Miscellaneous Expenses,11/10/2022,30014699,917.00 ,Pickfords Move Management Ltd
East Lindsey District Council,http://statistics.data.gov.uk/id/local-authority/32UC,Property,Other Miscellaneous Expenses,20/10/2022,30015114,"1,450.00 ",Experian
East Lindsey District Council,http://statistics.data.gov.uk/id/local-authority/32UC,Property,Other Miscellaneous Expenses,20/10/2022,30015204,"1,035.00 ",Eastern Shires Purchasing Organisation
East Lindsey District Council,http://statistics.data.gov.uk/id/local-authority/32UC,Property,Other Miscellaneous Expenses,27/10/2022,30015253,720.00 ,Lincolnshire County Council
East Lindsey District Council,http://statistics.data.gov.uk/id/local-authority/32UC,Property,Other Private Contractors,01/11/2022,30015199,"1,950.00 ",Kier Business Services Ltd
East Lindsey District Council,http://statistics.data.gov.uk/id/local-authority/32UC,Property,Other Private Contractors,25/10/2022,30015375,"1,324.00 ",Freeths LLP
East Lindsey District Council,http://statistics.data.gov.uk/id/local-authority/32UC,Property,Other Private Contractors,25/10/2022,30015376,957.00 ,Freeths LLP
East Lindsey District Council,http://statistics.data.gov.uk/id/local-authority/32UC,Property,Postages,11/10/2022,30014997,"1,000.00 ",Francotyp Postalia Ltd (teleset)
East Lindsey District Council,http://statistics.data.gov.uk/id/local-authority/32UC,Property,Professional and Contractors Fees,18/10/2022,30014665,"7,549.20 ",Biffa Waste Services Ltd
East Lindsey District Council,http://statistics.data.gov.uk/id/local-authority/32UC,Property,Professional and Contractors Fees,18/10/2022,30014754,675.00 ,Lambert Smith Hampton
East Lindsey District Council,http://statistics.data.gov.uk/id/local-authority/32UC,Property,Professional and Contractors Fees,11/10/2022,30014756,348.75 ,Vivid Resourcing
East Lindsey District Council,http://statistics.data.gov.uk/id/local-authority/32UC,Property,Professional and Contractors Fees,06/10/2022,30014784,350.00 ,Public Sector Partnership Services Ltd
East Lindsey District Council,http://statistics.data.gov.uk/id/local-authority/32UC,Property,Professional and Contractors Fees,18/10/2022,30014824,405.00 ,Vivid Resourcing
East Lindsey District Council,http://statistics.data.gov.uk/id/local-authority/32UC,Property,Professional and Contractors Fees,06/10/2022,30014826,"3,816.00 ",DHF Products Limited
East Lindsey District Council,http://statistics.data.gov.uk/id/local-authority/32UC,Property,Professional and Contractors Fees,11/10/2022,30015053,"1,079.37 ",Restore Datashred
East Lindsey District Council,http://statistics.data.gov.uk/id/local-authority/32UC,Property,Professional and Contractors Fees,01/11/2022,30015058,922.50 ,Vivid Resourcing
East Lindsey District Council,http://statistics.data.gov.uk/id/local-authority/32UC,Property,Professional and Contractors Fees,13/10/2022,30015107,"1,200.00 ",M.A.P Security Solutions Ltd
East Lindsey District Council,http://statistics.data.gov.uk/id/local-authority/32UC,Property,Professional and Contractors Fees,13/10/2022,30015111,429.23 ,Restore Datashred
East Lindsey District Council,http://statistics.data.gov.uk/id/local-authority/32UC,Property,Professional and Contractors Fees,25/10/2022,30015113,"2,430.36 ",Kings Armoured Security Services Ltd
East Lindsey District Council,http://statistics.data.gov.uk/id/local-authority/32UC,Property,Professional and Contractors Fees,01/11/2022,30015128,800.00 ,Turner Evans Stevens Ltd
East Lindsey District Council,http://statistics.data.gov.uk/id/local-authority/32UC,Property,Professional and Contractors Fees,01/11/2022,30015133,752.30 ,Phs Group
East Lindsey District Council,http://statistics.data.gov.uk/id/local-authority/32UC,Property,Professional and Contractors Fees,08/11/2022,30015246,686.25 ,Vivid Resourcing
East Lindsey District Council,http://statistics.data.gov.uk/id/local-authority/32UC,Property,Professional and Contractors Fees,25/10/2022,30015518,"4,950.00 ",Public Sector Partnership Services Ltd
East Lindsey District Council,http://statistics.data.gov.uk/id/local-authority/32UC,Property,Professional and Contractors Fees,25/10/2022,30015533,855.40 ,Freeths LLP
East Lindsey District Council,http://statistics.data.gov.uk/id/local-authority/32UC,Property,Professional and Contractors Fees,01/11/2022,30015590,"1,560.00 ",Safe Sound Security Systems Links Ltd
East Lindsey District Council,http://statistics.data.gov.uk/id/local-authority/32UC,Property,Professional and Contractors Fees,15/11/2022,30015627,"2,011.50 ",Biffa Waste Services Ltd
East Lindsey District Council,http://statistics.data.gov.uk/id/local-authority/32UC,Property,Rent Payments,04/10/2022,30014695,"1,494.67 ",Lincolnshire County Council
East Lindsey District Council,http://statistics.data.gov.uk/id/local-authority/32UC,Property,Rent Payments,06/10/2022,30014822,"5,833.33 ",Innes England
East Lindsey District Council,http://statistics.data.gov.uk/id/local-authority/32UC,Property,Rent Payments,06/10/2022,30014823,"5,833.33 ",Innes England
East Lindsey District Council,http://statistics.data.gov.uk/id/local-authority/32UC,Property,Telephones,20/10/2022,30014532,109.77 ,Multidata
East Lindsey District Council,http://statistics.data.gov.uk/id/local-authority/32UC,Property,Water and Sewerage Charges,04/10/2022,30014715,340.82 ,Wave Anglian Water Business National Ltd
East Lindsey District Council,http://statistics.data.gov.uk/id/local-authority/32UC,Property,Water and Sewerage Charges,04/10/2022,30014716,272.19 ,Wave Anglian Water Business National Ltd
East Lindsey District Council,http://statistics.data.gov.uk/id/local-authority/32UC,Property,Water and Sewerage Charges,04/10/2022,30014732,"10,520.38 ",Wave Anglian Water Business National Ltd
East Lindsey District Council,http://statistics.data.gov.uk/id/local-authority/32UC,Property,Water and Sewerage Charges,20/10/2022,30015386,"20,610.26 ",Wave Anglian Water Business National Ltd
East Lindsey District Council,http://statistics.data.gov.uk/id/local-authority/32UC,Property,Water and Sewerage Charges,25/10/2022,30015503,330.47 ,Wave Anglian Water Business National Ltd
East Lindsey District Council,http://statistics.data.gov.uk/id/local-authority/32UC,Property,Works to Buildings (Main Contractor),18/10/2022,30015251,"79,561.61 ",G F Tomlinson Building Limited
East Lindsey District Council,http://statistics.data.gov.uk/id/local-authority/32UC,Public Protection,Other Miscellaneous Expenses,04/10/2022,30014677,300.00 ,BT
East Lindsey District Council,http://statistics.data.gov.uk/id/local-authority/32UC,Public Protection,Professional and Contractors Fees,20/10/2022,30014532,111.00 ,Multidata
East Lindsey District Council,http://statistics.data.gov.uk/id/local-authority/32UC,Waste,Agency Staff,04/10/2022,30014703,732.00 ,Reilyn Ltd (DriverHire)
East Lindsey District Council,http://statistics.data.gov.uk/id/local-authority/32UC,Waste,Agency Staff,06/10/2022,30014793,585.60 ,Reilyn Ltd (DriverHire)
East Lindsey District Council,http://statistics.data.gov.uk/id/local-authority/32UC,Waste,Agency Staff,11/10/2022,30015063,"7,422.60 ",Red Rock Partnership Ltd
East Lindsey District Council,http://statistics.data.gov.uk/id/local-authority/32UC,Waste,Agency Staff,13/10/2022,30015100,732.00 ,Reilyn Ltd (DriverHire)
East Lindsey District Council,http://statistics.data.gov.uk/id/local-authority/32UC,Waste,Agency Staff,18/10/2022,30015219,732.00 ,Reilyn Ltd (DriverHire)
East Lindsey District Council,http://statistics.data.gov.uk/id/local-authority/32UC,Waste,Agency Staff,18/10/2022,30015248,"7,109.20 ",Red Rock Partnership Ltd
East Lindsey District Council,http://statistics.data.gov.uk/id/local-authority/32UC,Waste,Agency Staff,18/10/2022,30015320,"8,727.27 ",Red Rock Partnership Ltd
East Lindsey District Council,http://statistics.data.gov.uk/id/local-authority/32UC,Waste,Agency Staff,25/10/2022,30015340,732.00 ,Reilyn Ltd (DriverHire)
East Lindsey District Council,http://statistics.data.gov.uk/id/local-authority/32UC,Waste,Agency Staff,01/11/2022,30015640,732.00 ,Reilyn Ltd (DriverHire)
East Lindsey District Council,http://statistics.data.gov.uk/id/local-authority/32UC,Waste,Employee Related Schemes,06/10/2022,30014779,315.75 ,Terryberry Reward
East Lindsey District Council,http://statistics.data.gov.uk/id/local-authority/32UC,Waste,Fuel and Oil,03/11/2022,30015275,"5,419.75 ",Allstar Business Solutions Ltd
East Lindsey District Council,http://statistics.data.gov.uk/id/local-authority/32UC,Waste,Fuel and Oil,01/11/2022,30015644,"5,598.32 ",Allstar Business Solutions Ltd
East Lindsey District Council,http://statistics.data.gov.uk/id/local-authority/32UC,Waste,Internet Broadband Payments,20/10/2022,30014532,81.99 ,Multidata
East Lindsey District Council,http://statistics.data.gov.uk/id/local-authority/32UC,Waste,Materials and Consumables,13/10/2022,30014704,"15,892.50 ",ESE Ltd
East Lindsey District Council,http://statistics.data.gov.uk/id/local-authority/32UC,Waste,Materials and Consumables,18/10/2022,30014743,"16,207.30 ",ESE Ltd
East Lindsey District Council,http://statistics.data.gov.uk/id/local-authority/32UC,Waste,Materials and Consumables,27/10/2022,30015038,"16,788.00 ",ESE Ltd
East Lindsey District Council,http://statistics.data.gov.uk/id/local-authority/32UC,Waste,Materials and Consumables,27/10/2022,30015486,"1,083.75 ",Lincoln Security Ltd
East Lindsey District Council,http://statistics.data.gov.uk/id/local-authority/32UC,Waste,Materials and Consumables,15/11/2022,30015591,"25,513.15 ",Cromwell Polythene Ltd
East Lindsey District Council,http://statistics.data.gov.uk/id/local-authority/32UC,Waste,Professional and Contractors Fees,13/10/2022,30015054,226.57 ,Restore Datashred
East Lindsey District Council,http://statistics.data.gov.uk/id/local-authority/32UC,Waste,Professional and Contractors Fees,13/10/2022,30015141,456.00 ,Licence Bureau
East Lindsey District Council,http://statistics.data.gov.uk/id/local-authority/32UC,Waste,Stationery,25/10/2022,30015202,190.00 ,Eastern Shires Purchasing Organisation
East Lindsey District Council,http://statistics.data.gov.uk/id/local-authority/32UC,Waste,Telephones,20/10/2022,30014532,45.00 ,Multidata
East Lindsey District Council,http://statistics.data.gov.uk/id/local-authority/32UC,Waste,Workshop Parts,04/10/2022,30014358,384.75 ,Ford and Slater DAF (Lincoln Newark)
East Lindsey District Council,http://statistics.data.gov.uk/id/local-authority/32UC,Waste,Workshop Parts,13/10/2022,30014654,465.00 ,Ford and Slater DAF (Lincoln Newark)
East Lindsey District Council,http://statistics.data.gov.uk/id/local-authority/32UC,Waste,Workshop Parts,18/10/2022,30014661,263.19 ,Waste Parts UK Ltd
East Lindsey District Council,http://statistics.data.gov.uk/id/local-authority/32UC,Waste,Workshop Parts,06/10/2022,30014680,252.89 ,Partic Motor Spares Ltd
East Lindsey District Council,http://statistics.data.gov.uk/id/local-authority/32UC,Waste,Workshop Parts,06/10/2022,30014684,862.98 ,Partic Motor Spares Ltd
East Lindsey District Council,http://statistics.data.gov.uk/id/local-authority/32UC,Waste,Workshop Parts,06/10/2022,30014691,950.84 ,Partic Motor Spares Ltd
East Lindsey District Council,http://statistics.data.gov.uk/id/local-authority/32UC,Waste,Workshop Parts,13/10/2022,30014749,213.36 ,Partic Motor Spares Ltd
East Lindsey District Council,http://statistics.data.gov.uk/id/local-authority/32UC,Waste,Workshop Parts,13/10/2022,30014751,839.56 ,Partic Motor Spares Ltd
East Lindsey District Council,http://statistics.data.gov.uk/id/local-authority/32UC,Waste,Workshop Parts,06/10/2022,30014759,263.58 ,Partic Motor Spares Ltd
East Lindsey District Council,http://statistics.data.gov.uk/id/local-authority/32UC,Waste,Workshop Parts,18/10/2022,30014768,276.40 ,Waste Parts UK Ltd
East Lindsey District Council,http://statistics.data.gov.uk/id/local-authority/32UC,Waste,Workshop Parts,06/10/2022,30014770,"2,394.40 ",Morris Lubricants
East Lindsey District Council,http://statistics.data.gov.uk/id/local-authority/32UC,Waste,Workshop Parts,20/10/2022,30014787,410.61 ,Partic Motor Spares Ltd
East Lindsey District Council,http://statistics.data.gov.uk/id/local-authority/32UC,Waste,Workshop Parts,20/10/2022,30014818,524.17 ,Partic Motor Spares Ltd
East Lindsey District Council,http://statistics.data.gov.uk/id/local-authority/32UC,Waste,Workshop Parts,18/10/2022,30014952,564.44 ,Dennis Eagle Ltd
East Lindsey District Council,http://statistics.data.gov.uk/id/local-authority/32UC,Waste,Workshop Parts,25/10/2022,30014955,331.72 ,Bucher Municipal
East Lindsey District Council,http://statistics.data.gov.uk/id/local-authority/32UC,Waste,Workshop Parts,13/10/2022,30014956,"7,429.80 ",Bucher Municipal
East Lindsey District Council,http://statistics.data.gov.uk/id/local-authority/32UC,Waste,Workshop Parts,13/10/2022,30014957,"1,256.64 ",Bucher Municipal
East Lindsey District Council,http://statistics.data.gov.uk/id/local-authority/32UC,Waste,Workshop Parts,11/10/2022,30015001,"9,400.43 ",Vaculug Technologies Ltd
East Lindsey District Council,http://statistics.data.gov.uk/id/local-authority/32UC,Waste,Workshop Parts,18/10/2022,30015026,"2,732.05 ",Dennis Eagle Ltd
East Lindsey District Council,http://statistics.data.gov.uk/id/local-authority/32UC,Waste,Workshop Parts,25/10/2022,30015032,658.86 ,Dennis Eagle Ltd
East Lindsey District Council,http://statistics.data.gov.uk/id/local-authority/32UC,Waste,Workshop Parts,18/10/2022,30015034,715.77 ,Dennis Eagle Ltd
East Lindsey District Council,http://statistics.data.gov.uk/id/local-authority/32UC,Waste,Workshop Parts,27/10/2022,30015076,329.23 ,Partic Motor Spares Ltd
East Lindsey District Council,http://statistics.data.gov.uk/id/local-authority/32UC,Waste,Workshop Parts,11/10/2022,30015078,241.43 ,Thurlby Motors Ltd
East Lindsey District Council,http://statistics.data.gov.uk/id/local-authority/32UC,Waste,Workshop Parts,13/10/2022,30015095,268.70 ,N T Shaw of Louth
East Lindsey District Council,http://statistics.data.gov.uk/id/local-authority/32UC,Waste,Workshop Parts,13/10/2022,30015097,"1,480.34 ",N T Shaw of Louth
East Lindsey District Council,http://statistics.data.gov.uk/id/local-authority/32UC,Waste,Workshop Parts,13/10/2022,30015099,493.65 ,Tip Master
East Lindsey District Council,http://statistics.data.gov.uk/id/local-authority/32UC,Waste,Workshop Parts,27/10/2022,30015151,245.22 ,Bryan Coupland Ltd
East Lindsey District Council,http://statistics.data.gov.uk/id/local-authority/32UC,Waste,Workshop Parts,01/11/2022,30015181,"1,962.16 ",Terberg Matec UK
East Lindsey District Council,http://statistics.data.gov.uk/id/local-authority/32UC,Waste,Workshop Parts,03/11/2022,30015220,235.74 ,Terberg Matec UK
East Lindsey District Council,http://statistics.data.gov.uk/id/local-authority/32UC,Waste,Workshop Parts,03/11/2022,30015222,602.74 ,Bucher Municipal
East Lindsey District Council,http://statistics.data.gov.uk/id/local-authority/32UC,Waste,Workshop Parts,01/11/2022,30015242,252.07 ,Partic Motor Spares Ltd
East Lindsey District Council,http://statistics.data.gov.uk/id/local-authority/32UC,Waste,Workshop Parts,25/10/2022,30015342,381.98 ,Partic Motor Spares Ltd
East Lindsey District Council,http://statistics.data.gov.uk/id/local-authority/32UC,Waste,Workshop Parts,10/11/2022,30015357,483.90 ,Partic Motor Spares Ltd
East Lindsey District Council,http://statistics.data.gov.uk/id/local-authority/32UC,Waste,Workshop Parts,03/11/2022,30015409,234.59 ,Dennis Eagle Ltd
East Lindsey District Council,http://statistics.data.gov.uk/id/local-authority/32UC,Waste,Workshop Parts,03/11/2022,30015410,291.67 ,Dennis Eagle Ltd
East Lindsey District Council,http://statistics.data.gov.uk/id/local-authority/32UC,Waste,Workshop Parts,03/11/2022,30015413,268.67 ,Dennis Eagle Ltd
East Lindsey District Council,http://statistics.data.gov.uk/id/local-authority/32UC,Waste,Workshop Parts,08/11/2022,30015442,347.23 ,Dennis Eagle Ltd
East Lindsey District Council,http://statistics.data.gov.uk/id/local-authority/32UC,Waste,Workshop Parts,08/11/2022,30015443,355.93 ,Dennis Eagle Ltd
East Lindsey District Council,http://statistics.data.gov.uk/id/local-authority/32UC,Waste,Workshop Parts,27/10/2022,30015499,"2,732.05 ",Dennis Eagle Ltd
East Lindsey District Council,http://statistics.data.gov.uk/id/local-authority/32UC,Waste,Workshop Parts,27/10/2022,30015500,514.87 ,Dennis Eagle Ltd
East Lindsey District Council,http://statistics.data.gov.uk/id/local-authority/32UC,Waste,Workshop Parts,15/11/2022,30015637,377.00 ,Partic Motor Spares Ltd
East Lindsey District Council,http://statistics.data.gov.uk/id/local-authority/32UC,Waste,Workshop Parts,01/11/2022,30015658,497.00 ,Partic Motor Spares Ltd
East Lindsey District Council,http://statistics.data.gov.uk/id/local-authority/32UC,Waste,Workshop Parts,01/11/2022,30015669,"9,400.43 ",Vaculug Technologies Ltd
